[Event "Challengers Triathlon (GM2)"]
[Site "Biel, CH"]
[Date "2025.07.13"]
[Round "3"]
[White "Dardha, Daniel"]
[Black "Jumabayev, Rinat"]
[Result "1-0"]
[Board "2"]
[TimeControl "900+5"]
[WhiteFideId "240990"]
[BlackFideId "13702661"]
[WhiteTitle "GM"]
[BlackTitle "GM"]
[WhiteElo "2580"]
[BlackElo "2546"]
[WhiteTeam "BEL"]
[BlackTeam "KAZ"]
[WhiteClock "0:00:23"]
[BlackClock "0:00:11"]
[Variant "Standard"]

1. e4 {[%clk 0:15:07]}  c5 {[%clk 0:14:50]} 2. Nc3 {[%clk 0:15:09]}  e6 {[%clk 0:14:52]} 3. Nge2 {[%clk 0:14:58]}  a6 {[%clk 0:14:56]} 4. g3 {[%clk 0:14:52]}  b5 {[%clk 0:14:51]} 5. Bg2 {[%clk 0:14:35]}  Bb7 {[%clk 0:14:55]} 6. d4 {[%clk 0:12:50]}  cxd4 {[%clk 0:14:57]} 7. Nxd4 {[%clk 0:12:46]}  Nc6 {[%clk 0:14:42]} 8. O-O {[%clk 0:12:34]}  Nge7 {[%clk 0:14:09]} 9. Be3 {[%clk 0:11:56]}  Ne5 {[%clk 0:08:59]} 10. f4 {[%clk 0:10:20]}  Nc4 {[%clk 0:09:03]} 11. Bc1 {[%clk 0:10:22]}  Qb6 {[%clk 0:08:21]} 12. Kh1 {[%clk 0:09:20]}  Nc6 {[%clk 0:06:31]} 13. Nxc6 {[%clk 0:07:06]}  Qxc6 {[%clk 0:06:34]} 14. Qe2 {[%clk 0:05:13]}  Be7 {[%clk 0:06:35]} 15. b3 {[%clk 0:04:11]}  Nb6 {[%clk 0:06:11]} 16. Bb2 {[%clk 0:04:09]}  O-O {[%clk 0:06:02]} 17. Nd1 {[%clk 0:03:40]}  f5 {[%clk 0:03:21]} 18. exf5 {[%clk 0:03:42]}  Qxg2+ {[%clk 0:03:22]} 19. Qxg2 {[%clk 0:03:46]}  Bxg2+ {[%clk 0:03:25]} 20. Kxg2 {[%clk 0:03:50]}  Rxf5 {[%clk 0:03:17]} 21. Ne3 {[%clk 0:03:54]}  Rc5 {[%clk 0:02:57]} 22. Ba3 {[%clk 0:03:08]}  Rc3 {[%clk 0:02:07]} 23. Bxe7 {[%clk 0:03:10]}  Rxe3 {[%clk 0:02:11]} 24. Bc5 {[%clk 0:03:10]}  Nd5 {[%clk 0:02:15]} 25. c4 {[%clk 0:02:44]}  bxc4 {[%clk 0:01:53]} 26. bxc4 {[%clk 0:02:48]}  Rc8 {[%clk 0:01:50]} 27. cxd5 {[%clk 0:02:46]}  Rxc5 {[%clk 0:01:53]} 28. dxe6 {[%clk 0:02:44]}  dxe6 {[%clk 0:01:44]} 29. Rf2 {[%clk 0:02:39]}  Kf7 {[%clk 0:01:18]} 30. Rb1 {[%clk 0:02:32]}  Kf6 {[%clk 0:00:57]} 31. Rb8 {[%clk 0:02:16]}  Ra5 {[%clk 0:00:41]} 32. Rf8+ {[%clk 0:02:16]}  Kg6 {[%clk 0:00:39]} 33. Re8 {[%clk 0:01:25]}  Kf7 {[%clk 0:00:42]} 34. Rc8 {[%clk 0:01:25]}  Rea3 {[%clk 0:00:44]} 35. Rcc2 {[%clk 0:01:27]}  h5 {[%clk 0:00:46]} 36. Kh3 {[%clk 0:01:29]}  Kf6 {[%clk 0:00:37]} 37. Rfe2 {[%clk 0:01:33]}  e5 {[%clk 0:00:20]} 38. fxe5+ {[%clk 0:01:09]}  Rxe5 {[%clk 0:00:23]} 39. Rc6+ {[%clk 0:01:08]}  Kf5 {[%clk 0:00:26]} 40. Rf2+ {[%clk 0:01:11]}  Ke4 {[%clk 0:00:12]} 41. Rg6 {[%clk 0:01:06]}  Rea5 {[%clk 0:00:06]} 42. Rxg7 {[%clk 0:00:50]}  Rxa2 {[%clk 0:00:10]} 43. Rxa2 {[%clk 0:00:50]}  Rxa2 {[%clk 0:00:15]} 44. Rg5 {[%clk 0:00:54]}  h4 {[%clk 0:00:09]} 45. Rg4+ {[%clk 0:00:58]}  Kf5 {[%clk 0:00:13]} 46. Rxh4 {[%clk 0:00:58]}  a5 {[%clk 0:00:17]} 47. Rh5+ {[%clk 0:00:55]}  Ke4 {[%clk 0:00:15]} 48. Kg4 {[%clk 0:00:53]}  a4 {[%clk 0:00:11]} 49. h4 {[%clk 0:00:47]}  Kd4 {[%clk 0:00:08]} 50. Ra5 {[%clk 0:00:45]}  Kc4 {[%clk 0:00:13]} 51. Kh5 {[%clk 0:00:29]}  Kb4 {[%clk 0:00:17]} 52. Ra8 {[%clk 0:00:33]}  Rc2 {[%clk 0:00:11]} 53. g4 {[%clk 0:00:30]}  a3 {[%clk 0:00:12]} 54. g5 {[%clk 0:00:32]}  Rc5 {[%clk 0:00:16]} 55. Kh6 {[%clk 0:00:09]}  Ra5 {[%clk 0:00:15]} 56. Rb8+ {[%clk 0:00:13]}  Rb5 {[%clk 0:00:08]} 57. Re8 {[%clk 0:00:17]}  a2 {[%clk 0:00:03]} 58. Re1 {[%clk 0:00:20]}  Ka3 {[%clk 0:00:07]} 59. Ra1 {[%clk 0:00:12]}  Rb1 {[%clk 0:00:10]} 60. Rxa2+ {[%clk 0:00:16]}  Kxa2 {[%clk 0:00:14]} 61. g6 {[%clk 0:00:18]}  Kb3 {[%clk 0:00:07]} 62. g7 {[%clk 0:00:21]}  Rg1 {[%clk 0:00:11]} 63. Kh7 {[%clk 0:00:23]} 1-0

[Event "Challengers Triathlon (GM2)"]
[Site "Biel, CH"]
[Date "2025.07.13"]
[Round "3"]
[White "Ma, Qun"]
[Black "Theodorou, Nikolas"]
[Result "1/2-1/2"]
[Board "3"]
[TimeControl "900+5"]
[WhiteFideId "8603154"]
[BlackFideId "4262875"]
[WhiteTitle "GM"]
[BlackTitle "GM"]
[WhiteElo "2617"]
[BlackElo "2559"]
[WhiteTeam "CHN"]
[BlackTeam "GRE"]
[WhiteClock "0:01:15"]
[BlackClock "0:03:19"]
[Variant "Standard"]

1. e4 {[%clk 0:15:07]}  c5 {[%clk 0:15:09]} 2. Nf3 {[%clk 0:15:03]}  Nc6 {[%clk 0:15:12]} 3. Bb5 {[%clk 0:15:05]}  e5 {[%clk 0:15:06]} 4. d3 {[%clk 0:14:26]}  d6 {[%clk 0:14:47]} 5. c3 {[%clk 0:10:56]}  Nf6 {[%clk 0:10:59]} 6. O-O {[%clk 0:14:02]}  Be7 {[%clk 0:11:03]} 7. d4 {[%clk 0:13:50]}  cxd4 {[%clk 0:10:38]} 8. cxd4 {[%clk 0:13:52]}  O-O {[%clk 0:10:41]} 9. Bxc6 {[%clk 0:12:35]}  bxc6 {[%clk 0:10:44]} 10. Nc3 {[%clk 0:12:35]}  exd4 {[%clk 0:08:42]} 11. Nxd4 {[%clk 0:12:26]}  Bd7 {[%clk 0:08:45]} 12. Bf4 {[%clk 0:08:57]}  Re8 {[%clk 0:08:36]} 13. Qc2 {[%clk 0:08:05]}  Bf8 {[%clk 0:08:15]} 14. Rad1 {[%clk 0:08:09]}  Ng4 {[%clk 0:06:46]} 15. h3 {[%clk 0:05:49]}  Ne5 {[%clk 0:06:48]} 16. Bh2 {[%clk 0:05:38]}  Qa5 {[%clk 0:06:31]} 17. Kh1 {[%clk 0:05:27]}  Rad8 {[%clk 0:05:49]} 18. Rfe1 {[%clk 0:04:47]}  Qa6 {[%clk 0:05:50]} 19. b3 {[%clk 0:04:41]}  Ng6 {[%clk 0:05:18]} 20. Kg1 {[%clk 0:04:19]}  d5 {[%clk 0:05:07]} 21. exd5 {[%clk 0:03:52]}  Rxe1+ {[%clk 0:05:10]} 22. Rxe1 {[%clk 0:03:56]}  cxd5 {[%clk 0:05:13]} 23. Nce2 {[%clk 0:02:05]}  Bb4 {[%clk 0:04:39]} 24. Rd1 {[%clk 0:02:09]}  Rc8 {[%clk 0:04:42]} 25. Qb1 {[%clk 0:02:07]}  h6 {[%clk 0:04:27]} 26. Nf4 {[%clk 0:01:56]}  Nxf4 {[%clk 0:04:07]} 27. Bxf4 {[%clk 0:01:59]}  Qf6 {[%clk 0:04:07]} 28. Be3 {[%clk 0:01:59]}  a5 {[%clk 0:04:08]} 29. Rc1 {[%clk 0:01:33]}  Rxc1+ {[%clk 0:03:42]} 30. Qxc1 {[%clk 0:01:37]}  Qg6 {[%clk 0:03:46]} 31. Qc2 {[%clk 0:01:36]}  Qxc2 {[%clk 0:03:10]} 32. Nxc2 {[%clk 0:01:40]}  Bf5 {[%clk 0:03:14]} 33. Nxb4 {[%clk 0:01:08]}  axb4 {[%clk 0:03:17]} 34. Bc5 {[%clk 0:01:11]}  Bb1 {[%clk 0:03:19]} 35. a3 {[%clk 0:01:15]} 1/2-1/2

[Event "Challengers Triathlon (GM2)"]
[Site "Biel, CH"]
[Date "2025.07.13"]
[Round "4"]
[White "Ma, Qun"]
[Black "Navara, David"]
[Result "1/2-1/2"]
[Board "1"]
[TimeControl "900+5"]
[WhiteFideId "8603154"]
[BlackFideId "309095"]
[WhiteTitle "GM"]
[BlackTitle "GM"]
[WhiteElo "2617"]
[BlackElo "2621"]
[WhiteTeam "CHN"]
[BlackTeam "CZE"]
[WhiteClock "0:00:20"]
[BlackClock "0:00:38"]
[Variant "Standard"]

1. d4 {[%clk 0:15:08]}  Nf6 {[%clk 0:15:08]} 2. c4 {[%clk 0:15:11]}  g6 {[%clk 0:15:03]} 3. f3 {[%clk 0:15:09]}  c5 {[%clk 0:14:59]} 4. dxc5 {[%clk 0:15:04]}  e6 {[%clk 0:13:39]} 5. Be3 {[%clk 0:14:41]}  b6 {[%clk 0:13:21]} 6. cxb6 {[%clk 0:14:38]}  axb6 {[%clk 0:13:23]} 7. Bf2 {[%clk 0:12:10]}  Nc6 {[%clk 0:12:48]} 8. Nc3 {[%clk 0:11:26]}  Bb4 {[%clk 0:11:51]} 9. e4 {[%clk 0:10:44]}  O-O {[%clk 0:11:53]} 10. Nge2 {[%clk 0:10:42]}  d5 {[%clk 0:11:29]} 11. a3 {[%clk 0:10:14]}  dxc4 {[%clk 0:11:01]} 12. axb4 {[%clk 0:07:41]}  Rxa1 {[%clk 0:09:39]} 13. Qxa1 {[%clk 0:07:45]}  Nxb4 {[%clk 0:09:42]} 14. Nd4 {[%clk 0:07:47]}  e5 {[%clk 0:09:45]} 15. Qa4 {[%clk 0:07:30]}  exd4 {[%clk 0:09:40]} 16. Qxb4 {[%clk 0:07:34]}  dxc3 {[%clk 0:09:22]} 17. bxc3 {[%clk 0:06:50]}  Nxe4 {[%clk 0:06:01]} 18. fxe4 {[%clk 0:06:34]}  Re8 {[%clk 0:06:02]} 19. Qxc4 {[%clk 0:03:54]}  Qg5 {[%clk 0:06:04]} 20. Be2 {[%clk 0:02:10]}  Qc1+ {[%clk 0:05:49]} 21. Bd1 {[%clk 0:02:13]}  Ba6 {[%clk 0:05:53]} 22. Qxa6 {[%clk 0:01:30]}  Rxe4+ {[%clk 0:05:56]} 23. Qe2 {[%clk 0:01:31]}  Qxc3+ {[%clk 0:05:59]} 24. Kf1 {[%clk 0:01:36]}  Rxe2 {[%clk 0:06:01]} 25. Bxe2 {[%clk 0:00:59]}  Qc1+ {[%clk 0:01:49]} 26. Be1 {[%clk 0:01:02]}  Qf4+ {[%clk 0:01:52]} 27. Bf2 {[%clk 0:01:02]}  g5 {[%clk 0:01:35]} 28. g4 {[%clk 0:00:10]}  b5 {[%clk 0:00:54]} 29. Rg1 {[%clk 0:00:14]}  Qxh2 {[%clk 0:00:40]} 30. Bxb5 {[%clk 0:00:11]}  h5 {[%clk 0:00:30]} 31. gxh5 {[%clk 0:00:08]}  Qxh5 {[%clk 0:00:31]} 32. Be2 {[%clk 0:00:11]}  Qh3+ {[%clk 0:00:34]} 33. Ke1 {[%clk 0:00:14]}  Qc3+ {[%clk 0:00:32]} 34. Kf1 {[%clk 0:00:17]}  Qh3+ {[%clk 0:00:35]} 35. Ke1 {[%clk 0:00:20]}  Qc3+ {[%clk 0:00:38]} 1/2-1/2

[Event "Challengers Triathlon (GM2)"]
[Site "Biel, CH"]
[Date "2025.07.13"]
[Round "4"]
[White "Theodorou, Nikolas"]
[Black "Dardha, Daniel"]
[Result "1-0"]
[Board "2"]
[TimeControl "900+5"]
[WhiteFideId "4262875"]
[BlackFideId "240990"]
[WhiteTitle "GM"]
[BlackTitle "GM"]
[WhiteElo "2559"]
[BlackElo "2580"]
[WhiteTeam "GRE"]
[BlackTeam "BEL"]
[WhiteClock "0:00:14"]
[BlackClock "0:00:26"]
[Variant "Standard"]

1. d4 {[%clk 0:15:08]}  Nf6 {[%clk 0:15:05]} 2. Nf3 {[%clk 0:15:11]}  b6 {[%clk 0:15:04]} 3. c4 {[%clk 0:14:59]}  e6 {[%clk 0:15:06]} 4. a3 {[%clk 0:15:01]}  Ba6 {[%clk 0:14:55]} 5. Qb3 {[%clk 0:15:01]}  c6 {[%clk 0:11:52]} 6. Nc3 {[%clk 0:14:00]}  d5 {[%clk 0:11:36]} 7. cxd5 {[%clk 0:13:51]}  exd5 {[%clk 0:11:21]} 8. Bg5 {[%clk 0:13:10]}  Be7 {[%clk 0:11:06]} 9. Bxf6 {[%clk 0:12:43]}  Bxf6 {[%clk 0:11:09]} 10. e4 {[%clk 0:12:46]}  Bxf1 {[%clk 0:09:52]} 11. Rxf1 {[%clk 0:12:24]}  dxe4 {[%clk 0:09:01]} 12. Nxe4 {[%clk 0:12:24]}  O-O {[%clk 0:09:01]} 13. O-O-O {[%clk 0:12:23]}  Nd7 {[%clk 0:09:02]} 14. Ne5 {[%clk 0:08:40]}  Bxe5 {[%clk 0:05:04]} 15. dxe5 {[%clk 0:08:43]}  Qe7 {[%clk 0:04:54]} 16. f4 {[%clk 0:06:34]}  Nc5 {[%clk 0:04:55]} 17. Qc2 {[%clk 0:06:17]}  Nxe4 {[%clk 0:04:51]} 18. Qxe4 {[%clk 0:06:19]}  Rad8 {[%clk 0:04:19]} 19. Rxd8 {[%clk 0:06:09]}  Rxd8 {[%clk 0:04:23]} 20. Qxc6 {[%clk 0:05:33]}  h6 {[%clk 0:04:17]} 21. Rd1 {[%clk 0:05:03]}  Rxd1+ {[%clk 0:04:18]} 22. Kxd1 {[%clk 0:05:06]}  Qd8+ {[%clk 0:04:06]} 23. Kc2 {[%clk 0:04:17]}  Kh7 {[%clk 0:03:16]} 24. Qe4+ {[%clk 0:03:41]}  Kg8 {[%clk 0:03:15]} 25. f5 {[%clk 0:03:37]}  Qc7+ {[%clk 0:03:10]} 26. Kb3 {[%clk 0:02:40]}  Kf8 {[%clk 0:03:02]} 27. Qd5 {[%clk 0:02:10]}  Ke7 {[%clk 0:02:53]} 28. g4 {[%clk 0:02:05]}  a6 {[%clk 0:02:25]} 29. h4 {[%clk 0:01:53]}  Qc1 {[%clk 0:01:49]} 30. Qd6+ {[%clk 0:01:04]}  Ke8 {[%clk 0:01:53]} 31. Qb8+ {[%clk 0:01:04]}  Kd7 {[%clk 0:01:44]} 32. Qd6+ {[%clk 0:01:06]}  Ke8 {[%clk 0:01:48]} 33. e6 {[%clk 0:00:38]}  fxe6 {[%clk 0:01:44]} 34. fxe6 {[%clk 0:00:33]}  Qc8 {[%clk 0:01:47]} 35. Qxb6 {[%clk 0:00:21]}  Ke7 {[%clk 0:01:51]} 36. a4 {[%clk 0:00:06]}  Qa8 {[%clk 0:01:47]} 37. Qc7+ {[%clk 0:00:09]}  Kxe6 {[%clk 0:01:50]} 38. Qxg7 {[%clk 0:00:11]}  Qd5+ {[%clk 0:01:50]} 39. Ka3 {[%clk 0:00:15]}  Qc5+ {[%clk 0:01:46]} 40. Ka2 {[%clk 0:00:19]}  Qc4+ {[%clk 0:01:10]} 41. b3 {[%clk 0:00:22]}  Qe2+ {[%clk 0:01:13]} 42. Ka3 {[%clk 0:00:23]}  Qe3 {[%clk 0:01:16]} 43. Qg6+ {[%clk 0:00:24]}  Ke7 {[%clk 0:01:20]} 44. Qg7+ {[%clk 0:00:19]}  Ke6 {[%clk 0:01:24]} 45. g5 {[%clk 0:00:12]}  Qc5+ {[%clk 0:00:51]} 46. Ka2 {[%clk 0:00:16]}  Qf2+ {[%clk 0:00:52]} 47. Qb2 {[%clk 0:00:17]}  Qxh4 {[%clk 0:00:55]} 48. Qf6+ {[%clk 0:00:11]}  Kd5 {[%clk 0:00:53]} 49. Qf5+ {[%clk 0:00:13]}  Kd6 {[%clk 0:00:39]} 50. Qg6+ {[%clk 0:00:15]}  Ke5 {[%clk 0:00:26]} 51. Qg7+ {[%clk 0:00:14]}  Kd5 {[%clk 0:00:23]} 52. gxh6 {[%clk 0:00:17]}  Qh2+ {[%clk 0:00:26]} 53. Ka3 {[%clk 0:00:15]}  Qd6+ {[%clk 0:00:27]} 54. b4 {[%clk 0:00:19]}  Kc4 {[%clk 0:00:27]} 55. Qg4+ {[%clk 0:00:15]}  Kc3 {[%clk 0:00:30]} 56. Qf3 {[%clk 0:00:17]}  Kc2 {[%clk 0:00:30]} 57. Qb3+ {[%clk 0:00:15]}  Kd2 {[%clk 0:00:29]} 58. h7 {[%clk 0:00:13]}  Qh6 {[%clk 0:00:26]} 59. Qb2+ {[%clk 0:00:14]} 1-0

[Event "Challengers Triathlon (GM2)"]
[Site "Biel, CH"]
[Date "2025.07.13"]
[Round "4"]
[White "Jumabayev, Rinat"]
[Black "Hakobyan, Aram"]
[Result "1/2-1/2"]
[Board "3"]
[TimeControl "900+5"]
[WhiteFideId "13702661"]
[BlackFideId "13306677"]
[WhiteTitle "GM"]
[BlackTitle "GM"]
[WhiteElo "2546"]
[BlackElo "2535"]
[WhiteTeam "KAZ"]
[BlackTeam "ARM"]
[WhiteClock "0:06:06"]
[BlackClock "0:04:46"]
[Variant "Standard"]

1. e4 {[%clk 0:15:09]}  e5 {[%clk 0:14:59]} 2. Nf3 {[%clk 0:15:13]}  Nc6 {[%clk 0:15:02]} 3. Bc4 {[%clk 0:15:17]}  Bc5 {[%clk 0:15:06]} 4. d3 {[%clk 0:15:16]}  Nf6 {[%clk 0:15:06]} 5. Nc3 {[%clk 0:15:10]}  d6 {[%clk 0:15:08]} 6. Be3 {[%clk 0:15:08]}  Bxe3 {[%clk 0:14:59]} 7. fxe3 {[%clk 0:15:12]}  Na5 {[%clk 0:14:56]} 8. Bb3 {[%clk 0:14:56]}  O-O {[%clk 0:14:33]} 9. O-O {[%clk 0:14:58]}  c6 {[%clk 0:13:54]} 10. Qe1 {[%clk 0:15:02]}  Nxb3 {[%clk 0:13:19]} 11. axb3 {[%clk 0:15:05]}  b5 {[%clk 0:12:28]} 12. b4 {[%clk 0:14:28]}  Be6 {[%clk 0:10:45]} 13. h3 {[%clk 0:09:51]}  a5 {[%clk 0:09:09]} 14. bxa5 {[%clk 0:09:11]}  Rxa5 {[%clk 0:08:36]} 15. Nd5 {[%clk 0:08:59]}  Rxa1 {[%clk 0:08:25]} 16. Nxf6+ {[%clk 0:09:02]}  Qxf6 {[%clk 0:08:23]} 17. Qxa1 {[%clk 0:09:06]}  Qh6 {[%clk 0:07:29]} 18. Qa7 {[%clk 0:09:09]}  c5 {[%clk 0:07:26]} 19. Qe7 {[%clk 0:05:53]}  Qxe3+ {[%clk 0:07:11]} 20. Kh2 {[%clk 0:05:56]}  Qe2 {[%clk 0:06:46]} 21. Rc1 {[%clk 0:05:59]}  Qe3 {[%clk 0:05:27]} 22. Rf1 {[%clk 0:06:03]}  Qe2 {[%clk 0:05:01]} 23. Rc1 {[%clk 0:06:06]}  Qe3 {[%clk 0:04:46]} 1/2-1/2

[Event "Challengers Triathlon (GM2)"]
[Site "Biel, CH"]
[Date "2025.07.13"]
[Round "5"]
[White "Navara, David"]
[Black "Jumabayev, Rinat"]
[Result "0-1"]
[Board "1"]
[TimeControl "900+5"]
[WhiteFideId "309095"]
[BlackFideId "13702661"]
[WhiteTitle "GM"]
[BlackTitle "GM"]
[WhiteElo "2621"]
[BlackElo "2546"]
[WhiteTeam "CZE"]
[BlackTeam "KAZ"]
[WhiteClock "0:00:00"]
[BlackClock "0:00:09"]
[Variant "Standard"]

1. d4 {[%clk 0:15:09]}  Nf6 {[%clk 0:15:06]} 2. c4 {[%clk 0:15:13]}  e6 {[%clk 0:15:10]} 3. Nc3 {[%clk 0:15:16]}  Bb4 {[%clk 0:15:12]} 4. e3 {[%clk 0:15:20]}  O-O {[%clk 0:15:06]} 5. Bd3 {[%clk 0:15:23]}  c5 {[%clk 0:15:09]} 6. Nf3 {[%clk 0:15:25]}  b6 {[%clk 0:15:02]} 7. e4 {[%clk 0:15:29]}  cxd4 {[%clk 0:14:42]} 8. a3 {[%clk 0:15:33]}  Be7 {[%clk 0:14:13]} 9. Nxd4 {[%clk 0:15:35]}  d6 {[%clk 0:14:14]} 10. O-O {[%clk 0:15:29]}  Bb7 {[%clk 0:14:18]} 11. b4 {[%clk 0:13:37]}  Nc6 {[%clk 0:13:33]} 12. Nxc6 {[%clk 0:13:23]}  Bxc6 {[%clk 0:13:37]} 13. Be3 {[%clk 0:13:15]}  Nd7 {[%clk 0:12:23]} 14. Qd2 {[%clk 0:12:27]}  Rc8 {[%clk 0:09:10]} 15. Rac1 {[%clk 0:10:25]}  Ne5 {[%clk 0:08:50]} 16. Be2 {[%clk 0:10:27]}  Bb7 {[%clk 0:08:52]} 17. Qa2 {[%clk 0:10:30]}  Qc7 {[%clk 0:07:38]} 18. f4 {[%clk 0:10:07]}  Nd7 {[%clk 0:07:41]} 19. Bd3 {[%clk 0:09:36]}  a6 {[%clk 0:07:24]} 20. Qf2 {[%clk 0:09:32]}  Ba8 {[%clk 0:06:04]} 21. Rc2 {[%clk 0:09:04]}  Rb8 {[%clk 0:05:43]} 22. Qg3 {[%clk 0:08:22]}  Bf6 {[%clk 0:03:09]} 23. Qh3 {[%clk 0:08:02]}  Bxc3 {[%clk 0:02:24]} 24. Rxc3 {[%clk 0:07:32]}  e5 {[%clk 0:02:24]} 25. f5 {[%clk 0:07:14]}  Nf6 {[%clk 0:01:30]} 26. Bg5 {[%clk 0:07:03]}  Qe7 {[%clk 0:00:17]} 27. Bb1 {[%clk 0:06:31]}  Rfc8 {[%clk 0:00:20]} 28. Qh4 {[%clk 0:05:15]}  Kf8 {[%clk 0:00:24]} 29. Rd1 {[%clk 0:04:14]}  h6 {[%clk 0:00:10]} 30. Bxf6 {[%clk 0:04:14]}  Qxf6 {[%clk 0:00:13]} 31. Qxf6 {[%clk 0:04:17]}  gxf6 {[%clk 0:00:16]} 32. Rxd6 {[%clk 0:03:33]}  Ke7 {[%clk 0:00:20]} 33. Rd1 {[%clk 0:02:40]}  Rd8 {[%clk 0:00:17]} 34. Rxd8 {[%clk 0:02:24]}  Rxd8 {[%clk 0:00:21]} 35. Kf2 {[%clk 0:02:21]}  Rd2+ {[%clk 0:00:17]} 36. Kf3 {[%clk 0:02:25]}  Bc6 {[%clk 0:00:06]} 37. Bd3 {[%clk 0:02:10]}  a5 {[%clk 0:00:10]} 38. bxa5 {[%clk 0:01:37]}  bxa5 {[%clk 0:00:15]} 39. c5 {[%clk 0:01:38]}  a4 {[%clk 0:00:13]} 40. h4 {[%clk 0:01:27]}  Rb2 {[%clk 0:00:07]} 41. Bc2 {[%clk 0:01:05]}  Rb8 {[%clk 0:00:07]} 42. Rc4 {[%clk 0:00:56]}  Ra8 {[%clk 0:00:11]} 43. Kg4 {[%clk 0:00:34]}  Kf8 {[%clk 0:00:16]} 44. Kf3 {[%clk 0:00:10]}  Ke7 {[%clk 0:00:13]} 45. g3 {[%clk 0:00:14]}  Ra5 {[%clk 0:00:16]} 46. Ke3 {[%clk 0:00:14]}  Bb5 {[%clk 0:00:20]} 47. Rc3 {[%clk 0:00:10]}  Bc6 {[%clk 0:00:23]} 48. Bb1 {[%clk 0:00:08]}  Ra8 {[%clk 0:00:18]} 49. Ba2 {[%clk 0:00:10]}  Rg8 {[%clk 0:00:19]} 50. Kf3 {[%clk 0:00:09]}  Rd8 {[%clk 0:00:23]} 51. Bc4 {[%clk 0:00:08]}  Rd4 {[%clk 0:00:14]} 52. Bd3 {[%clk 0:00:12]}  Kd7 {[%clk 0:00:11]} 53. Ke3 {[%clk 0:00:14]}  Kc7 {[%clk 0:00:12]} 54. Rc4 {[%clk 0:00:15]}  Rd8 {[%clk 0:00:13]} 55. g4 {[%clk 0:00:11]}  Rg8 {[%clk 0:00:11]} 56. Be2 {[%clk 0:00:11]}  Bb5 {[%clk 0:00:11]} 57. Rb4 {[%clk 0:00:15]}  Bxe2 {[%clk 0:00:14]} 58. Kxe2 {[%clk 0:00:19]}  Rxg4 {[%clk 0:00:18]} 59. Rxa4 {[%clk 0:00:13]}  Rxh4 {[%clk 0:00:17]} 60. Kf3 {[%clk 0:00:13]}  Kc6 {[%clk 0:00:08]} 61. Ra6+ {[%clk 0:00:09]}  Kxc5 {[%clk 0:00:12]} 62. Rxf6 {[%clk 0:00:12]}  h5 {[%clk 0:00:08]} 63. Rxf7 {[%clk 0:00:09]}  Rh3+ {[%clk 0:00:12]} 64. Kg2 {[%clk 0:00:07]}  Rxa3 {[%clk 0:00:09]} 65. Rd7 {[%clk 0:00:09]}  h4 {[%clk 0:00:09]} 66. Rd5+ {[%clk 0:00:10]}  Kc4 {[%clk 0:00:13]} 67. Rxe5 {[%clk 0:00:12]}  Kd4 {[%clk 0:00:16]} 68. Re7 {[%clk 0:00:09]}  Ra6 {[%clk 0:00:09]} 69. Kh3 {[%clk 0:00:00]} 0-1

[Event "Challengers Triathlon (GM2)"]
[Site "Biel, CH"]
[Date "2025.07.13"]
[Round "5"]
[White "Hakobyan, Aram"]
[Black "Theodorou, Nikolas"]
[Result "1/2-1/2"]
[Board "2"]
[TimeControl "900+5"]
[WhiteFideId "13306677"]
[BlackFideId "4262875"]
[WhiteTitle "GM"]
[BlackTitle "GM"]
[WhiteElo "2535"]
[BlackElo "2559"]
[WhiteTeam "ARM"]
[BlackTeam "GRE"]
[WhiteClock "0:01:20"]
[BlackClock "0:01:17"]
[Variant "Standard"]

1. d4 {[%clk 0:15:08]}  Nf6 {[%clk 0:15:06]} 2. c4 {[%clk 0:15:09]}  c5 {[%clk 0:15:09]} 3. d5 {[%clk 0:15:12]}  b5 {[%clk 0:15:12]} 4. cxb5 {[%clk 0:15:15]}  a6 {[%clk 0:15:16]} 5. bxa6 {[%clk 0:15:16]}  e6 {[%clk 0:15:18]} 6. dxe6 {[%clk 0:15:15]}  fxe6 {[%clk 0:15:18]} 7. Nc3 {[%clk 0:15:04]}  Bxa6 {[%clk 0:14:30]} 8. g3 {[%clk 0:14:56]}  Be7 {[%clk 0:14:06]} 9. Bg2 {[%clk 0:14:59]}  d5 {[%clk 0:14:09]} 10. Nh3 {[%clk 0:14:57]}  Nc6 {[%clk 0:13:23]} 11. O-O {[%clk 0:14:13]}  O-O {[%clk 0:13:25]} 12. Re1 {[%clk 0:13:39]}  Qe8 {[%clk 0:11:52]} 13. e4 {[%clk 0:10:49]}  d4 {[%clk 0:10:46]} 14. e5 {[%clk 0:08:55]}  dxc3 {[%clk 0:10:48]} 15. exf6 {[%clk 0:08:58]}  Bxf6 {[%clk 0:10:51]} 16. Rxe6 {[%clk 0:06:44]}  Rd8 {[%clk 0:10:03]} 17. Bd5 {[%clk 0:04:28]}  Kh8 {[%clk 0:03:07]} 18. Rxe8 {[%clk 0:04:31]}  Rfxe8 {[%clk 0:03:11]} 19. Bg5 {[%clk 0:02:32]}  cxb2 {[%clk 0:03:08]} 20. Rb1 {[%clk 0:01:15]}  Re5 {[%clk 0:01:44]} 21. Bxf6 {[%clk 0:01:02]}  Rexd5 {[%clk 0:01:47]} 22. Bxd8 {[%clk 0:00:09]}  Rxd1+ {[%clk 0:01:38]} 23. Rxd1 {[%clk 0:00:13]}  Bd3 {[%clk 0:01:10]} 24. Nf4 {[%clk 0:00:12]}  Bc2 {[%clk 0:00:26]} 25. Re1 {[%clk 0:00:17]}  Kg8 {[%clk 0:00:30]} 26. Bb6 {[%clk 0:00:07]}  Nd4 {[%clk 0:00:11]} 27. Kg2 {[%clk 0:00:09]}  Be4+ {[%clk 0:00:15]} 28. Kh3 {[%clk 0:00:06]}  Nf3 {[%clk 0:00:16]} 29. Rd1 {[%clk 0:00:07]}  Bc2 {[%clk 0:00:16]} 30. Rf1 {[%clk 0:00:07]}  c4 {[%clk 0:00:13]} 31. Nd5 {[%clk 0:00:09]}  Nd2 {[%clk 0:00:08]} 32. Re1 {[%clk 0:00:10]}  b1=Q {[%clk 0:00:08]} 33. Rxb1 {[%clk 0:00:14]}  Nxb1 {[%clk 0:00:09]} 34. Bd4 {[%clk 0:00:13]}  Be4 {[%clk 0:00:10]} 35. Nc3 {[%clk 0:00:11]}  Nxc3 {[%clk 0:00:13]} 36. Bxc3 {[%clk 0:00:15]}  Kf7 {[%clk 0:00:11]} 37. Kg4 {[%clk 0:00:20]}  g6 {[%clk 0:00:10]} 38. Kf4 {[%clk 0:00:24]}  Bb7 {[%clk 0:00:07]} 39. Ke5 {[%clk 0:00:28]}  Ke7 {[%clk 0:00:11]} 40. Bb4+ {[%clk 0:00:31]}  Kd7 {[%clk 0:00:15]} 41. f4 {[%clk 0:00:32]}  Bf3 {[%clk 0:00:15]} 42. a4 {[%clk 0:00:35]}  Kc6 {[%clk 0:00:16]} 43. Bc3 {[%clk 0:00:18]}  Bd1 {[%clk 0:00:12]} 44. a5 {[%clk 0:00:22]}  Kb5 {[%clk 0:00:16]} 45. Kf6 {[%clk 0:00:13]}  Bc2 {[%clk 0:00:08]} 46. g4 {[%clk 0:00:15]}  Bd1 {[%clk 0:00:11]} 47. h3 {[%clk 0:00:15]}  Bf3 {[%clk 0:00:15]} 48. f5 {[%clk 0:00:08]}  Bg2 {[%clk 0:00:10]} 49. h4 {[%clk 0:00:08]}  Bh3 {[%clk 0:00:07]} 50. fxg6 {[%clk 0:00:07]}  hxg6 {[%clk 0:00:10]} 51. Kg5 {[%clk 0:00:10]}  Ka6 {[%clk 0:00:09]} 52. Kf4 {[%clk 0:00:14]}  Bf1 {[%clk 0:00:12]} 53. h5 {[%clk 0:00:13]}  gxh5 {[%clk 0:00:15]} 54. gxh5 {[%clk 0:00:17]}  Bd3 {[%clk 0:00:18]} 55. h6 {[%clk 0:00:21]}  Kb5 {[%clk 0:00:22]} 56. Ke5 {[%clk 0:00:25]}  Ka6 {[%clk 0:00:25]} 57. Kf6 {[%clk 0:00:27]}  Kb5 {[%clk 0:00:29]} 58. Kg7 {[%clk 0:00:31]}  Ka6 {[%clk 0:00:33]} 59. h7 {[%clk 0:00:35]}  Bxh7 {[%clk 0:00:37]} 60. Kxh7 {[%clk 0:00:40]}  Ka7 {[%clk 0:00:41]} 61. Kg6 {[%clk 0:00:44]}  Kb7 {[%clk 0:00:45]} 62. Kf6 {[%clk 0:00:48]}  Ka8 {[%clk 0:00:49]} 63. Ke7 {[%clk 0:00:52]}  Kb7 {[%clk 0:00:53]} 64. Kd6 {[%clk 0:00:56]}  Ka8 {[%clk 0:00:57]} 65. Kc6 {[%clk 0:01:00]}  Kb8 {[%clk 0:01:01]} 66. Kb6 {[%clk 0:01:04]}  Ka8 {[%clk 0:01:05]} 67. a6 {[%clk 0:01:09]}  Kb8 {[%clk 0:01:09]} 68. a7+ {[%clk 0:01:11]}  Ka8 {[%clk 0:01:13]} 69. Bd4 {[%clk 0:01:15]}  c3 {[%clk 0:01:17]} 70. Bxc3 {[%clk 0:01:20]} 1/2-1/2